[Event "Sautron op 15th"]
[Site "Sautron"]
[Date "2015.10.24"]
[Round "6.9"]
[White "Loiseau, Quentin"]
[Black "Delorme, Alban"]
[Result "1-0"]
[ECO "A44"]
[WhiteElo "2449"]
[BlackElo "2303"]
[Annotator "RR"]
[PlyCount "63"]
[EventDate "2015.10.24"]
[EventType "swiss"]
[EventRounds "9"]
[EventCountry "FRA"]
[SourceTitle "CBM 169 Extra"]
[Source "ChessBase"]
[SourceDate "2015.12.18"]
[SourceVersion "1"]
[SourceVersionDate "2015.12.18"]
[SourceQuality "1"]
[TimeControl "40/5400+30:1800+30"]
[WhiteClock "0:10:32"]
[BlackClock "0:43:28"]

1. d4 {[%emt 0:01:44]} c5 {[%emt 0:00:17]} 2. d5 {[%emt 0:00:16]} e5 {[%emt 0:
00:48] La vieille Benoni n'a pas très bonne réputation théorique} 3. e4 {
[%emt 0:00:05]} d6 {[%emt 0:00:39]} 4. Nc3 {[%emt 0:00:05]} Be7 {[%emt 0:01:02]
} 5. Nf3 {[%emt 0:02:34]} (5. Bb5+ Nd7 (5... Bd7 6. Bxd7+ Nxd7 7. Nf3 $14 {
[%csl Re7]})) 5... Bg4 {[%emt 0:01:23]} 6. Bd3 {[%emt 0:01:44]} (6. h3 Bxf3 7.
Qxf3 Bg5 8. Bxg5 Qxg5 9. h4 Qd8 10. Nd1 Ne7 11. Ne3 O-O 12. O-O-O Nd7 13. Kb1
a6 14. g3 b5 15. Bh3 c4 16. h5 h6 17. Bxd7 Qxd7 18. g4 f6 19. Nf5 b4 20. Qe3 c3
21. b3 a5 22. a4 bxa3 23. Ka2 Rfc8 24. Nxh6+ gxh6 25. Qxh6 a4 26. b4 Kf7 27.
Qh7+ Ke8 28. Qh8+ Kf7 29. Qh7+ Ke8 30. Kxa3 Qb5 31. Qh8+ Kf7 32. Qh7+ Ke8 33.
Qh8+ Kd7 34. Qxf6 Rc4 35. Rb1 Rb8 {Ding,L (2717)-Liu,Q (2501) Xinghua 2014 1/
2-1/2}) 6... Nf6 {[%emt 0:02:36]} 7. h3 {[%emt 0:00:36]} Bh5 {[%emt 0:00:35]} (
7... Bxf3 8. Qxf3 Nbd7 9. Qe2 O-O 10. g3 Rc8 11. a4 $14) 8. Be3 {[%emt 0:02:01]
} O-O {[%emt 0:01:25]} 9. g4 $1 {[%emt 0:09:05]} Bg6 {[%emt 0:02:53]} 10. Nh4 {
[%emt 0:00:37]} Bxe4 {[%emt 0:02:25]} 11. Nxe4 {[%emt 0:02:34]} Nxe4 {[%emt 0:
00:11]} 12. Nf5 $16 {[%emt 0:00:19]} Nf6 {[%emt 0:00:34] La petite combinaison
Be4 n'a pas résolu les problèmes d'espace et les Blancs prennent
l'initiative à l'aile-roi} 13. g5 {[%emt 0:01:00]} Ne8 {[%emt 0:07:20]} 14.
Qh5 $40 {[%emt 0:18:17][%cal Gd3h7,Gh5h7,Gf5e7]} g6 {[%emt 0:00:31]} 15. Qh6 {
[%emt 0:00:15]} Qd7 $1 {[%emt 0:06:15][%cal Gd7f5] Menace de prendre le Nf5} (
15... gxf5 16. Bxf5) 16. Rg1 $1 {[%emt 0:15:55] Après un 1/4 d'heure de
réflexion, le MI trouve un moyen de renforcer l'attaque} gxf5 {[%emt 0:04:58]}
17. Rg4 $1 {[%emt 0:00:11][%cal Gg4h4,Gd3h7] La pointe} Bd8 {[%emt 0:00:12]}
18. Rh4 {[%emt 0:00:55]} f6 {[%emt 0:00:07]} 19. g6 {[%emt 0:00:14]} Qg7 {
[%emt 0:04:50]} 20. gxh7+ {[%emt 0:18:29]} Kh8 {[%emt 0:00:49]} 21. Qh5 $44 {
[%emt 0:07:13] Si les Noirs arrivent à terminer le développement les
compensations du MI ne seront probablement pas suffisantes} f4 {[%emt 0:06:22]}
22. Rg4 {[%emt 0:00:25]} Qe7 $6 {[%emt 0:00:10] Joué а tempo alors que les
Noirs avaient encore presqu'une heure а la pendule} (22... f5 $1 23. Rxg7 Nxg7
24. Qf3 fxe3 25. Qxe3 Nd7 26. O-O-O e4 $17 {[%cal Gd7e5]}) 23. Rg8+ {[%emt 0:
03:12]} Rxg8 {[%emt 0:00:11]} 24. hxg8=Q+ {[%emt 0:00:05]} Kxg8 {[%emt 0:00:07]
} 25. O-O-O {[%emt 0:00:18][%cal Gd1g1]} Qf7 {[%emt 0:06:36]} 26. Bg6 {[%emt 0:
04:01]} Qg7 {[%emt 0:01:33]} 27. Bd2 {[%emt 0:00:45]} Nc7 {[%emt 0:05:01]} 28.
Rg1 {[%emt 0:01:21]} Kf8 {[%emt 0:00:02]} 29. Rg4 $18 {[%emt 0:00:15]} Ke7 {
[%emt 0:01:44]} 30. Bf5 {[%emt 0:00:27]} Qf7 {[%emt 0:00:18]} 31. Qh8 {[%emt 0:
00:23]} Ne8 {[%emt 0:00:08]} 32. Be6 {[%emt 0:00:07]} 1-0